[Event "CCT Julius Baer-D3 2024"]
[Site "Online"]
[Date "2024.09.28"]
[Round "53"]
[White "Niemann, Hans Moke"]
[Black "Hakobyan, Aram"]
[Result "1/2-1/2"]
[ECO "C11"]
[WhiteElo "2733"]
[BlackElo "2617"]
[Annotator "TA"]
[PlyCount "83"]
[EventDate "2024.09.25"]
[EventType "swiss"]
[EventCountry "NET"]
[SourceTitle "playchess.com"]
[Source "ChessBase"]
[SourceQuality "1"]
[TimeControl "600+2"]

{[%evp 39,83,-4,-36,-17,-20,-24,-19,-92,-90,-98,-90,-114,-16,-16,-14,-15,-12,-20,-27,-492,-487,-479,-505,-521,-137,-126,-122,-118,-122,-131,-131,-123,-121,-128,-128,-145,-130,-302,-170,-289,0,-279,0,-281,0,-227]} 1. e4 {[%emt 0:00:03]} e6 {[%emt 0:00:06]} 2. d4 {[%emt 0:00:02]} d5 {[%emt 0:00:01]} 3. Nc3 {[%emt 0:00:01]} Nf6 {[%emt 0:00:03]} 4. e5 {[%emt 0:00:01]} Nfd7 {[%emt 0:00:01]} 5. f4 {[%emt 0:00:00]} c5 {[%emt 0:00:00]} 6. Nf3 {[%emt 0:00:01]} Nc6 {[%emt 0:00:01]} 7. Be3 {[%emt 0:00:00]} cxd4 {[%emt 0:00:02]} 8. Nxd4 {[%emt 0:00:00]} Qb6 {[%emt 0:00:01]} 9. a3 {[%emt 0:00:20]} Bc5 {[%emt 0:00:06]} 10. Ncb5 $1 {[%emt 0:00:01][%mdl 4] now scores much better than the old 10.Na4. C11: French: Classical System: 4 e5 and 4 Bg5 dxe4.} a6 {[%emt 0:00:14]} 11. b4 {[%emt 0:00:03]} axb5 {[%emt 0:00:02]} 12. bxc5 {[%emt 0:00:01]} Qxc5 {[%emt 0:00:18]} 13. Qd3 {[%emt 0:00:01]} Qe7 {[%emt 0:00:04]} 14. Nxb5 {[%emt 0:00:24]} O-O {[%emt 0:00:02]} 15. Qc3 {[%emt 0:00:08]} f6 {[%emt 0:01:47]} 16. exf6 {[%emt 0:00:03]} Rxf6 {[%emt 0:00:02]} 17. Be2 {[%emt 0:01:46]} e5 {[%emt 0:00:28]} 18. Nc7 $146 {[%emt 0:00:04]} ({Predecessor:} 18. fxe5 Rf5 19. Bd4 Ndxe5 20. O-O-O Nxd4 21. Nxd4 Rf6 22. Rhe1 Bd7 23. Bf3 Qd6 24. Qb4 Nxf3 25. Nxf3 Rxa3 26. Qxd6 Rxd6 {½-½ Taylor,T (1908)-Wang,E (2293) Las Vegas 1000 GM op 2023 (1)}) 18... d4 {[%emt 0:00:00]} 19. Qc4+ {[%emt 0:00:24]} Kh8 {[%emt 0:00:35]} 20. Nd5 {[%emt 0:00:02]} (20. Nxa8 $16 b5) 20... Qd6 $11 {[%emt 0:00:58]} (20... b5 $2 21. Qxc6 (21. Qxb5 Qe8 $14) 21... Rxc6 22. Nxe7 $18) 21. Nxf6 {[%emt 0:00:06]} Nxf6 {[%emt 0:00:00]} 22. Bf2 $1 {[%emt 0:00:27]} Be6 {[%emt 0:00:48]} 23. Qb5 {[%emt 0:00:07]} (23. fxe5 $11 {keeps the balance.} Bxc4 (23... Qxe5 $2 24. Qb5 $18) 24. exd6) 23... Ne4 $1 $17 {[%emt 0:01:00]} 24. fxe5 {[%emt 0:02:15]} (24. Qxb7 $2 Rb8 (24... Rxa3 $2 25. Rxa3 Qxa3 26. O-O $18) 25. fxe5 (25. Qa6 $2 Nc5 $19) 25... Qc5 $19) 24... Nxe5 {[%emt 0:00:03]} 25. Bg3 {[%emt 0:00:13]} (25. Qxb7 $2 Bd5 (25... Rxa3 $2 26. Rxa3 Qxa3 27. Qxe4 $18) 26. Qb2 Nxf2 $19) (25. O-O $2 Nc3 (25... Rxa3 $2 26. Rxa3 h6 27. Ra5 $18) 26. Qb4 Nxe2+ 27. Kh1 Qc7 $19) 25... Nxg3 {[%emt 0:00:59]} (25... Bd5 $1 $17 26. O-O Nc3) 26. hxg3 $11 {[%emt 0:00:02]} d3 {[%emt 0:00:29]} 27. cxd3 {[%emt 0:00:41]} (27. Qxb7 $2 Bd5 (27... Rxa3 28. Rxa3 Qxa3 29. Qb8+ Bg8 30. Qxe5 $16) 28. Qb5 Bc6 $19 (28... dxe2 $2 29. Qxe2 Re8 30. Rxh7+ Kxh7 31. Qh5+ Qh6 32. Qxh6+ Kxh6 33. c3 $19) (28... dxc2 29. O-O $11) (28... Bxg2 29. Rh5 $15) (28... Rb8 $2 29. Qxb8+ Qxb8 30. cxd3 $19) (28... dxe2 $2 29. Qxe2 Re8 30. Rxh7+ Kxh7 31. Qh5+ Qh6 32. Qxh6+ Kxh6 33. Kd2 $19) (28... dxc2 29. O-O $11) (28... Bxg2 $2 29. Rh5 $19) (28... Rb8 $2 29. Qa4 $19)) (27. Bxd3 Nxd3+ 28. Qxd3 Qe5+ 29. Kd2 Bf5 $19) 27... Qd4 {[%emt 0:00:03]} 28. Rc1 {[%emt 0:00:13]} Qe3 {[%emt 0:00:10]} 29. Rc3 $2 {[%emt 0:00:16][%mdl 8192]} (29. Kd1 $1 $11 {and White stays safe.}) 29... Bg4 $19 {[%emt 0:00:17]} 30. Qb2 {[%emt 0:00:23]} Re8 {[%emt 0:01:06]} (30... Qxg3+ 31. Kd1 Nxd3 (31... Qxg2 32. Re1 $17) 32. Qxb7 Nf2+ 33. Kc2 Bf5+ 34. Kb2 $17) 31. Qd2 {[%emt 0:00:21] [#]} Nf3+ $2 {[%emt 0:00:35]} ({Weaker is} 31... Qxg3+ 32. Kd1 $11) (31... Qd4 $1 $19 {[%mdl 512] And now ...Bxe2 would win.} 32. Kd1 Nxd3 (32... Bxe2+ 33. Qxe2 Qxc3 34. Rxh7+ Kg8 35. Rh8+ Kf7 36. Qh5+ Ng6 37. Qf3+ Qf6 38. Qxb7+ Re7 39. Qd5+ Re6 40. Qd7+ Qe7 41. Rd8 $17)) 32. gxf3 $17 {[%emt 0:00:14]} Qxf3 {[%emt 0:00:00]} 33. Rh2 {[%emt 0:00:20]} Qxg3+ {[%emt 0:00:01]} 34. Rf2 {[%emt 0:00:02]} (34. Kd1 Qxh2 35. Bxg4 Qg1+ 36. Kc2 Qxg4) 34... Bxe2 {[%emt 0:00:21]} 35. Qxe2 {[%emt 0:00:02]} Rxe2+ {[%emt 0:00:03]} 36. Kxe2 {[%emt 0:00:00]} h5 {[%emt 0:00:06]} 37. Rc4 {[%emt 0:00:12]} Kh7 {[%emt 0:00:08]} 38. Rff4 $2 {[%emt 0:00:24]} (38. Re4 $17) 38... Qg2+ {[%emt 0:00:05]} (38... g5 $142 39. Rf3 Qg2+ 40. Rf2 Qd5) 39. Ke3 {[%emt 0:00:01]} (39. Rf2 $142 Qd5 40. Kd2) 39... Qg3+ {[%emt 0:00:01]} 40. Ke2 $1 {[%emt 0:00:01]} Qg2+ {[%emt 0:00:06]} 41. Ke3 $1 {[%emt 0:00:01]} Qg3+ {[%emt 0:00:00]} 42. Ke2 $1 {[%emt 0:00:00]} 1/2-1/2

[Event "CCT Julius Baer-D3 2024"]
[Site "Online"]
[Date "2024.09.28"]
[Round "53"]
[White "Navara, David"]
[Black "Alekseenko, Kirill"]
[Result "1/2-1/2"]
[ECO "D06"]
[WhiteElo "2681"]
[BlackElo "2679"]
[Annotator "RC"]
[PlyCount "193"]
[EventDate "2024.09.25"]
[EventType "swiss"]
[EventCountry "NET"]
[SourceTitle "playchess.com"]
[Source "ChessBase"]
[SourceQuality "1"]
[TimeControl "600+2"]

1. d4 {[%emt 0:00:03]} d5 {[%emt 0:00:09]} 2. c4 {[%emt 0:00:01]} c5 {[%emt 0:00:01]} 3. cxd5 {[%emt 0:00:06]} Nf6 {[%emt 0:00:02]} 4. Nf3 {[%emt 0:00:27]} cxd4 {[%emt 0:00:06]} 5. Nxd4 {[%emt 0:00:01]} Nxd5 {[%emt 0:00:07]} 6. e4 {[%emt 0:00:01]} Nf6 {[%emt 0:00:15]} 7. Bf4 {[%emt 0:00:01]} Nc6 {[%emt 0:02:06]} 8. Nxc6 {[%emt 0:01:43]} Qxd1+ {[%emt 0:00:03]} 9. Kxd1 {[%emt 0:00:00]} bxc6 {[%emt 0:00:00]} 10. f3 {[%emt 0:00:01]} Nd7 {[%emt 0:00:31]} 11. Nd2 {[%emt 0:00:12]} e5 {[%emt 0:00:03]} 12. Be3 {[%emt 0:00:01]} Nb6 {[%emt 0:01:35]} 13. Nc4 {[%emt 0:00:25]} Nxc4 {[%emt 0:00:18]} 14. Bxc4 {[%emt 0:00:00]} Bd6 {[%emt 0:00:17]} 15. Kc2 {[%emt 0:00:15]} Ke7 {[%emt 0:00:01]} 16. Rad1 {[%emt 0:00:15]} Be6 {[%emt 0:00:05]} 17. Bxe6 {[%emt 0:00:09]} Kxe6 {[%emt 0:00:00]} 18. Rd3 {[%emt 0:00:01]} Be7 {[%emt 0:00:13]} 19. Rc3 {[%emt 0:00:33]} Rhc8 {[%emt 0:00:11]} 20. Rd1 {[%emt 0:00:02]} g6 {[%emt 0:00:19]} 21. Rc4 {[%emt 0:00:28]} f5 {[%emt 0:00:03]} 22. Rd3 {[%emt 0:00:11]} Rc7 {[%emt 0:00:36]} 23. h3 {[%emt 0:01:17]} h5 {[%emt 0:00:01]} 24. Rdc3 {[%emt 0:00:14]} Kd7 {[%emt 0:00:03]} 25. Ra4 {[%emt 0:00:02]} a6 {[%emt 0:00:01]} 26. Rd3+ {[%emt 0:00:56]} Ke6 {[%emt 0:00:03]} 27. Rb3 {[%emt 0:00:00]} Kd7 {[%emt 0:00:37]} 28. Rb6 {[%emt 0:00:11]} Rca7 {[%emt 0:00:00]} 29. Rc4 {[%emt 0:00:19]} Rc7 {[%emt 0:00:04]} 30. Rb3 {[%emt 0:00:23]} Ke6 {[%emt 0:00:07]} 31. Bb6 {[%emt 0:00:34]} Rcc8 {[%emt 0:00:03]} 32. Rbc3 {[%emt 0:00:00]} Kd7 {[%emt 0:00:04]} 33. Rd3+ {[%emt 0:00:13]} Ke6 {[%emt 0:00:01]} 34. a4 {[%emt 0:00:11]} Rab8 {[%emt 0:00:20]} 35. a5 {[%emt 0:00:05]} Rb7 {[%emt 0:00:04]} 36. Rdc3 {[%emt 0:00:09]} Kd7 {[%emt 0:00:01]} 37. b4 {[%emt 0:00:07]} Rbb8 {[%emt 0:00:06]} 38. Kb3 {[%emt 0:00:05]} Bf8 {[%emt 0:00:24]} 39. Rd3+ {[%emt 0:00:34]} Ke6 {[%emt 0:00:02]} 40. Rc2 {[%emt 0:00:26]} Be7 {[%emt 0:00:22]} 41. Rdc3 {[%emt 0:00:06]} Kd7 {[%emt 0:00:02]} 42. Rd2+ {[%emt 0:00:03]} Ke6 {[%emt 0:00:01]} 43. Ka4 {[%emt 0:00:12]} Rb7 {[%emt 0:00:16]} 44. Rdc2 {[%emt 0:00:02]} Kd7 {[%emt 0:00:02]} 45. Rc1 {[%emt 0:00:01]} Bf8 {[%emt 0:00:17]} 46. g4 {[%emt 0:00:08]} hxg4 {[%emt 0:00:07]} 47. hxg4 {[%emt 0:00:01]} fxe4 {[%emt 0:00:23]} 48. fxe4 {[%emt 0:00:01]} Be7 {[%emt 0:00:01]} 49. Rh1 {[%emt 0:00:06]} Rbb8 {[%emt 0:00:18]} 50. Rh6 {[%emt 0:00:12]} Rg8 {[%emt 0:00:08]} 51. Rh7 {[%emt 0:00:05]} Rh8 {[%emt 0:00:04]} 52. Rg7 {[%emt 0:00:02]} Rbg8 {[%emt 0:00:09]} 53. Rxg8 {[%emt 0:00:02]} Rxg8 {[%emt 0:00:01]} 54. Rh3 {[%emt 0:00:02]} Rf8 {[%emt 0:00:20]} 55. Rh7 {[%emt 0:00:03]} Ke6 {[%emt 0:00:00]} 56. Bc5 {[%emt 0:00:02]} Bxc5 {[%emt 0:00:07]} 57. bxc5 {[%emt 0:00:00]} Rf4 {[%emt 0:00:01]} 58. Ra7 {[%emt 0:00:01]} Rxe4+ {[%emt 0:00:00]} 59. Kb3 {[%emt 0:00:01]} Kd5 {[%emt 0:00:01]} 60. g5 {[%emt 0:00:02]} Kxc5 {[%emt 0:00:02]} 61. Rxa6 {[%emt 0:00:01]} Re3+ {[%emt 0:00:04]} 62. Kb2 {[%emt 0:00:02]} Rg3 {[%emt 0:00:07]} 63. Rb6 {[%emt 0:00:01]} Rg2+ {[%emt 0:00:02]} 64. Kb3 {[%emt 0:00:02]} Rxg5 {[%emt 0:00:05]} 65. Rb8 {[%emt 0:00:08]} Rg3+ {[%emt 0:00:05]} 66. Kb2 {[%emt 0:00:01]} Rg4 {[%emt 0:00:01]} 67. Kb3 {[%emt 0:00:01]} Rg3+ {[%emt 0:00:02]} 68. Kb2 {[%emt 0:00:01]} Rf3 {[%emt 0:00:00]} 69. a6 {[%emt 0:00:01]} Rf7 {[%emt 0:00:01]} 70. Rb7 {[%emt 0:00:01]} Rf8 {[%emt 0:00:02]} 71. a7 {[%emt 0:00:01]} Ra8 {[%emt 0:00:01]} 72. Kc3 {[%emt 0:00:01]} g5 {[%emt 0:00:05]} 73. Kd3 {[%emt 0:00:01]} Kd5 {[%emt 0:00:01]} 74. Rd7+ {[%emt 0:00:05]} Ke6 {[%emt 0:00:01]} 75. Rc7 {[%emt 0:00:01]} Kd6 {[%emt 0:00:01]} 76. Rg7 {[%emt 0:00:01]} Kd5 {[%emt 0:00:04]} 77. Rd7+ {[%emt 0:00:02]} Ke6 {[%emt 0:00:00]} 78. Rc7 {[%emt 0:00:03]} Kf5 {[%emt 0:00:04]} 79. Rf7+ {[%emt 0:00:01]} Kg6 {[%emt 0:00:03]} 80. Rc7 {[%emt 0:00:01]} Kf5 {[%emt 0:00:01]} 81. Rf7+ {[%emt 0:00:01]} Ke6 {[%emt 0:00:05]} 82. Rg7 {[%emt 0:00:02]} Kf6 {[%emt 0:00:04]} 83. Rc7 {[%emt 0:00:01]} g4 {[%emt 0:00:01]} 84. Ke4 {[%emt 0:00:02]} g3 {[%emt 0:00:01]} 85. Kf3 {[%emt 0:00:02]} Ke6 {[%emt 0:00:03]} 86. Kxg3 {[%emt 0:00:03]} Kd6 {[%emt 0:00:02]} 87. Rb7 {[%emt 0:00:00]} c5 {[%emt 0:00:01]} 88. Kf3 {[%emt 0:00:02]} Kc6 {[%emt 0:00:01]} 89. Re7 {[%emt 0:00:01]} Kb6 {[%emt 0:00:00]} 90. Re6+ {[%emt 0:00:06]} Kb5 {[%emt 0:00:03]} 91. Re7 {[%emt 0:00:01]} Kb6 {[%emt 0:00:00]} 92. Re6+ {[%emt 0:00:10]} Kxa7 {[%emt 0:00:06]} 93. Rc6 {[%emt 0:00:01]} Kb7 {[%emt 0:00:03]} 94. Rxc5 {[%emt 0:00:01]} Rc8 {[%emt 0:00:01]} 95. Rxc8 {[%emt 0:00:01]} Kxc8 {[%emt 0:00:00]} 96. Ke4 {[%emt 0:00:01]} Kd8 {[%emt 0:00:00]} 97. Kxe5 {[%emt 0:00:00]} 1/2-1/2

[Event "CCT Julius Baer-D3 2024"]
[Site "Online"]
[Date "2024.09.28"]
[Round "53"]
[White "Alekseenko, Kirill"]
[Black "Navara, David"]
[Result "0-1"]
[ECO "C50"]
[WhiteElo "2679"]
[BlackElo "2681"]
[Annotator "TA"]
[PlyCount "92"]
[EventDate "2024.09.25"]
[EventType "swiss"]
[EventCountry "NET"]
[SourceTitle "playchess.com"]
[Source "ChessBase"]
[SourceQuality "1"]
[TimeControl "600+2"]

{[%evp 12,91,8,8,10,7,4,0,16,0,11,14,19,10,18,10,19,18,19,15,43,18,13,12,16,12,44,6,8,0,0,0,0,0,0,0,45,45,45,39,50,60,117,123,109,105,148,131,139,129,126,102,103,77,108,100,87,0,0,0,0,0,0,-11,0,0,0,0,0,0,194,0,0,0,0,0,0,-29997,-29998,-29998,-29999,-29999]} 1. e4 {[%emt 0:00:05]} e5 {[%emt 0:02:40]} 2. Nf3 {[%emt 0:00:03]} Nc6 {[%emt 0:00:02]} 3. Bc4 {[%emt 0:00:02]} Bc5 {[%emt 0:00:04]} 4. d3 {[%emt 0:00:04]} Nf6 {[%emt 0:00:03]} 5. Nc3 {[%emt 0:00:04]} h6 {[%emt 0:00:04]} 6. a3 {[%emt 0:00:03]} a6 {[%emt 0:00:03]} 7. Be3 {[%emt 0:00:03] C50: Hungarian Defence and Giuoco Pianissimo.} d6 {[%emt 0:00:03]} 8. Bxc5 {[%emt 0:00:05]} dxc5 {[%emt 0:00:02]} 9. Nd5 {[%emt 0:00:02]} O-O {[%emt 0:00:17]} 10. Ne3 {[%emt 0:00:07]} Re8 {[%emt 0:00:14]} 11. O-O {[%emt 0:00:04]} b5 $146 {[%emt 0:00:04]} ({Predecessor:} 11... Qd6 12. a4 b6 13. Nh4 Ne7 14. g3 g5 15. Nhg2 Ng6 16. h4 gxh4 17. Kh2 h5 18. Nxh4 Nxh4 19. gxh4 {1-0 Alekseenko,K (2650)-Kourkoulos Arditis,S (2556) San Vicente op 8th 2024 (9)}) 12. Ba2 {[%emt 0:00:04]} Be6 {[%emt 0:00:04]} 13. Bxe6 {[%emt 0:00:16]} Rxe6 {[%emt 0:00:02]} 14. a4 {[%emt 0:00:12]} g6 {[%emt 0:00:26]} 15. Nd2 {[%emt 0:00:15]} Kg7 {[%emt 0:00:10]} 16. g3 {[%emt 0:00:09]} Re8 {[%emt 0:00:18]} 17. b3 {[%emt 0:00:15]} Qd4 {[%emt 0:00:24]} (17... Qd7 {seems wilder.} 18. Kg2 Nd4 19. f4 exf4 20. Rxf4 Rad8) 18. Qc1 {[%emt 0:00:34]} Qc3 {[%emt 0:00:25]} 19. Nd1 {[%emt 0:00:09]} Qd4 {[%emt 0:00:08]} 20. Re1 {[%emt 0:00:56]} Qd6 {[%emt 0:00:11]} 21. Ne3 {[%emt 0:00:09]} Nd4 {[%emt 0:00:04]} 22. Kh1 {[%emt 0:00:07]} h5 {[%emt 0:00:08]} 23. Qd1 {[%emt 0:00:31]} h4 {[%emt 0:00:21]} 24. Nf3 {[%emt 0:00:06]} hxg3 {[%emt 0:00:08]} 25. fxg3 {[%emt 0:00:05]} Rh8 {[%emt 0:00:21]} 26. Rf1 {[%emt 0:00:11]} Nxf3 {[%emt 0:00:18]} (26... Rac8 $14) 27. Qxf3 $16 {[%emt 0:00:05]} Qe6 {[%emt 0:00:03]} 28. Rf2 {[%emt 0:00:17]} Nh7 {[%emt 0:00:04]} 29. Nd5 {[%emt 0:01:07]} Rac8 {[%emt 0:00:36]} 30. axb5 {[%emt 0:00:36]} axb5 {[%emt 0:00:02]} 31. Ra7 {[%emt 0:00:03]} Ng5 {[%emt 0:00:04]} 32. Qe3 $1 {[%emt 0:00:07]} (32. Nxc7 $2 Rxc7 33. Rxc7 Nxf3 $19) 32... Qg4 {[%emt 0:00:03] [#]} 33. Ra1 $1 {[%emt 0:00:22]} (33. Qxc5 Qd1+ (33... Qxg3 34. Rxc7 Rxc7 35. Nxc7 $11) 34. Kg2 Rxh2+ 35. Kxh2 Rh8+ 36. Kg2 Qh1#) 33... Nh3 {[%emt 0:00:26]} 34. Rg2 {[%emt 0:01:01]} ({White should try} 34. Rff1 $16) 34... c6 $11 {[%emt 0:00:30]} 35. Nc3 {[%emt 0:00:03]} c4 {[%emt 0:00:10]} 36. bxc4 {[%emt 0:00:04]} bxc4 {[%emt 0:00:02]} 37. d4 {[%emt 0:00:53]} Ra8 {[%emt 0:00:16]} 38. Rf1 {[%emt 0:00:04]} Ra3 {[%emt 0:00:06]} 39. dxe5 {[%emt 0:00:09]} Rd8 {[%emt 0:00:19]} 40. Qb6 {[%emt 0:00:18]} Rd7 $2 {[%emt 0:00:20] [#]} (40... Rda8 $11 {and Black stays safe.} 41. Qxc6 Ra1 42. Qf6+ (42. Qxc4 $2 Qe6 $19) 42... Kh6) 41. Qb2 $2 {[%emt 0:00:03]} (41. e6 $1 $18 {[%cal Re6d7]} Qxe6 (41... fxe6 $2 42. Qb2 $18) 42. Qb2) 41... Rxc3 $1 $11 {[%emt 0:00:11]} 42. Qxc3 {[%emt 0:00:08]} Rd1 {[%emt 0:00:02]} 43. e6+ {[%emt 0:00:05]} (43. Qxc4 Qf3) 43... Kh7 {[%emt 0:00:08]} 44. Rgg1 $2 {[%emt 0:00:34][%mdl 8192]} (44. exf7 $2 {is a self mate.} Rxf1+) (44. Qxc4 {leads to mate.} Qf3 (44... Qxe6 45. Qe2 $11) 45. Rxd1 Qxd1+) (44. Qf6 $11 fxe6 45. Qe7+ Kg8 46. Qf7+ Kh8 47. c3) 44... Qxe4+ {[%emt 0:00:05]} 45. Qf3 {[%emt 0:00:04]} Qxf3+ {[%emt 0:00:03]} 46. Rxf3 {[%emt 0:00:05]} Rxg1# {[%emt 0:00:02]} 0-1

[Event "CCT Julius Baer-D3 2024"]
[Site "Online"]
[Date "2024.09.28"]
[Round "53"]
[White "Gelfand, Boris"]
[Black "Kamsky, Gata"]
[Result "1-0"]
[ECO "A81"]
[WhiteElo "2658"]
[BlackElo "2609"]
[Annotator "TA"]
[PlyCount "105"]
[EventDate "2024.09.25"]
[EventType "swiss"]
[EventCountry "NET"]
[SourceTitle "playchess.com"]
[Source "ChessBase"]
[SourceQuality "1"]
[TimeControl "600+2"]

{[%evp 52,105,-109,-125,-112,-200,-192,-289,-260,-355,-354,-299,-123,-126,-133,-135,54,70,55,57,48,37,121,47,37,0,34,36,45,35,46,35,62,0,72,0,0,0,0,0,6,0,0,0,0,0,0,0,0,0,114,0,29988,29989,29990,29989]} 1. d4 {[%emt 0:00:03]} f5 {[%emt 0:00:04]} 2. g3 {[%emt 0:00:02]} Nf6 {[%emt 0:00:02]} 3. Bg2 {[%emt 0:00:01]} g6 {[%emt 0:00:01]} 4. Nf3 {[%emt 0:00:01]} Bg7 {[%emt 0:00:01]} 5. O-O {[%emt 0:00:03]} O-O {[%emt 0:00:00]} 6. b3 {[%emt 0:00:00]} (6. Nbd2 d6 7. Re1 Nc6 8. c3 e5 9. e4 Nxe4 10. Nxe4 fxe4 11. Rxe4 d5 12. Rh4 e4 13. Bg5 Bf6 14. Bxf6 Qxf6 15. Rf4 Bf5 16. Nh4 Ne7 17. Qb3 {0-1 Gelfand,B (2675)-Kamsky,G (2658) Biel blitz 54th 2021 (11)}) 6... c6 {[%emt 0:00:09]} 7. Bb2 {[%emt 0:00:08]} a5 {[%emt 0:00:04] A81: Dutch Defence: 2 g3.} 8. c4 {[%emt 0:00:04]} d5 {[%emt 0:00:04]} 9. Ne5 {[%emt 0:00:27]} Ne4 {[%emt 0:00:04]} 10. Qc2 {[%emt 0:00:13]} Be6 {[%emt 0:00:05]} 11. Rd1 $146 {[%emt 0:00:56]} ({Predecessor:} 11. f3 Nf6 12. c5 Nbd7 13. Nd3 g5 14. e3 g4 15. Nf4 Bf7 16. Qxf5 gxf3 17. Bxf3 {1-0 Olarasu,G (2305)-Ciobanu,C (2251) ROM-ch (Women) 2003 (4.1)}) 11... Nd7 {[%emt 0:00:05]} 12. Nd3 {[%emt 0:00:03]} Bf7 {[%emt 0:00:23]} 13. e3 {[%emt 0:00:30]} a4 {[%emt 0:00:28]} 14. Na3 {[%emt 0:00:11]} h5 {[%emt 0:01:19]} 15. f3 {[%emt 0:00:54]} Nd6 {[%emt 0:00:09]} 16. c5 {[%emt 0:00:24]} Ne8 {[%emt 0:00:16]} 17. b4 {[%emt 0:00:02]} Nc7 {[%emt 0:00:07]} 18. Bc3 {[%emt 0:00:21]} g5 {[%emt 0:00:08]} 19. Ne5 {[%emt 0:00:31]} Be8 {[%emt 0:00:19]} 20. Qe2 {[%emt 0:00:23]} Nxe5 {[%emt 0:00:10]} 21. dxe5 {[%emt 0:00:02]} f4 {[%emt 0:00:02]} 22. gxf4 {[%emt 0:00:35]} gxf4 {[%emt 0:00:02]} 23. Kh1 {[%emt 0:00:01]} Qd7 {[%emt 0:00:30]} 24. Rg1 {[%emt 0:00:14]} Qf5 {[%emt 0:00:02]} 25. Nc2 {[%emt 0:01:28]} Nb5 {[%emt 0:00:07]} 26. Bb2 {[%emt 0:00:32]} a3 {[%emt 0:00:04]} 27. Bd4 {[%emt 0:00:09]} Bg6 {[%emt 0:00:06]} (27... Bxe5 $2 28. Bh3+ $18) 28. Rac1 {[%emt 0:00:07] [#]} (28. e4 $17 Nxd4 29. Nxd4 Qxe5 30. Rad1 dxe4 31. fxe4) 28... Kh7 $1 $19 {[%emt 0:00:15]} (28... Bxe5 29. Bh3 Qxh3 30. Bxe5 $11 (30. Rxg6+ Kf7 $17)) 29. exf4 {[%emt 0:00:46]} (29. Ba1 {is a better defense.}) 29... Bh6 $19 {[%emt 0:00:23]} (29... Qxf4 30. Be3 Qxe5 (30... Nc3 31. Qd2 $14) 31. Bf1) 30. Ba1 {[%emt 0:00:23]} Qxf4 {[%emt 0:00:06]} 31. Rcd1 {[%emt 0:00:15]} Qh4 {[%emt 0:00:19]} (31... Qc4 $19 {is more deadly.} 32. Qxc4 dxc4) 32. Nd4 $17 {[%emt 0:00:09]} Bf4 {[%emt 0:00:14]} 33. Bf1 {[%emt 0:00:01]} Nc7 $2 {[%emt 0:00:13]} ({Black should play} 33... Nxd4 $17 34. Bxd4 e6) 34. Bc3 $14 {[%emt 0:00:08]} e6 $1 {[%emt 0:00:28]} 35. Be1 {[%emt 0:00:08]} Qe7 {[%emt 0:00:02]} 36. Bh3 {[%emt 0:00:01]} Rg8 {[%emt 0:00:07]} (36... Rae8 $1 $14) 37. Bf2 {[%emt 0:00:02]} (37. Bd2 $16 Bxd2 38. Qxd2) 37... Raf8 {[%emt 0:00:12]} 38. Rg2 {[%emt 0:00:02]} Kh8 {[%emt 0:00:08]} (38... Nb5 $5 39. Nxb5 (39. Nxe6 Nc3 $17) 39... cxb5 $11) 39. Rdg1 {[%emt 0:00:02]} Bh7 $1 {[%emt 0:00:02]} 40. Qe1 {[%emt 0:00:05]} Rxg2 {[%emt 0:00:05]} 41. Rxg2 {[%emt 0:00:01]} Bg5 $1 {[%emt 0:00:34]} 42. Qg1 {[%emt 0:00:22]} ({Better is} 42. b5 $14 cxb5 43. Qa5) 42... Rg8 {[%emt 0:00:08] [#]} (42... Bh6 $11) 43. Be3 {[%emt 0:00:04]} ({White should try} 43. b5 $1 $16 {[%cal Rb5c6]} cxb5 44. c6 (44. Bxe6 Nxe6 45. Nxe6 Qxe6 $17) 44... bxc6 45. Nxc6) 43... Bxe3 $1 $11 {[%emt 0:00:32]} 44. Rxg8+ {[%emt 0:00:02]} Bxg8 {[%emt 0:00:01]} 45. Qxe3 {[%emt 0:00:01]} Qh7 {[%emt 0:00:08]} 46. Kg2 {[%emt 0:00:08]} Qg6+ {[%emt 0:00:06]} 47. Kf2 {[%emt 0:00:02]} Nb5 $1 {[%emt 0:00:11]} 48. Nxb5 {[%emt 0:00:04]} cxb5 {[%emt 0:00:02]} 49. Bf1 {[%emt 0:00:01]} Qc2+ {[%emt 0:00:04]} 50. Kg3 {[%emt 0:00:06]} Bh7 {[%emt 0:00:26]} (50... h4+ $11 {keeps the balance.} 51. Kg4 Bh7) 51. Bh3 {[%emt 0:00:12]} (51. Bxb5 $2 h4+ 52. Kxh4 Qxa2 $19) (51. Qg5 $16 {Hoping for Qf6+.} Qg6 52. Qxg6 Bxg6 53. Bxb5) 51... Qxa2 $2 {[%emt 0:00:11][%mdl 8192]} (51... h4+ $11 52. Kxh4 Qxa2 (52... Qxh2 53. Qh6 $11)) 52. Qh6 {[%emt 0:00:04]} h4+ {[%emt 0:00:51]} 53. Qxh4 {[%emt 0:00:01]} (53. Kxh4 Qf2+ (53... Qxh2 54. Qf6+ Kg8 55. Qxe6+ Kh8 56. Qf6+ Kg8 57. e6 Qf2+ 58. Kg5 Qe3+ 59. Kh5) 54. Kg4 Qg1+ (54... Qxh2 55. Qf6+ Kg8 56. Qxe6+ Kf8 57. Kg5 Qg3+ 58. Bg4 a2 59. Qf6+ Kg8 60. e6) 55. Kh5 a2 (55... Qxh2 56. Qf8+ Bg8 57. Qf6+ Kh7 58. Qh6#) 56. Qf8+ Qg8 57. Qf6+ Qg7 $19) 1-0

[Event "CCT Julius Baer-D3 2024"]
[Site "Online"]
[Date "2024.09.28"]
[Round "53"]
[White "Hakobyan, Aram"]
[Black "Niemann, Hans Moke"]
[Result "0-1"]
[ECO "D41"]
[WhiteElo "2617"]
[BlackElo "2733"]
[Annotator "RC"]
[PlyCount "58"]
[EventDate "2024.09.25"]
[EventType "swiss"]
[EventCountry "NET"]
[SourceTitle "playchess.com"]
[Source "ChessBase"]
[SourceQuality "1"]
[TimeControl "600+2"]

1. d4 {[%emt 0:00:04]} Nf6 {[%emt 0:00:04]} 2. c4 {[%emt 0:00:03]} e6 {[%emt 0:00:01]} 3. Nf3 {[%emt 0:00:02]} d5 {[%emt 0:00:01]} 4. Nc3 {[%emt 0:00:02]} c5 {[%emt 0:00:01]} 5. cxd5 {[%emt 0:00:02]} cxd4 {[%emt 0:00:01]} 6. Qxd4 {[%emt 0:00:04]} exd5 {[%emt 0:00:01]} 7. e4 {[%emt 0:00:01]} dxe4 {[%emt 0:00:02]} 8. Qxd8+ {[%emt 0:00:01]} Kxd8 {[%emt 0:00:00]} 9. Ng5 {[%emt 0:00:01]} Be6 {[%emt 0:00:01]} 10. a3 {[%emt 0:00:10]} Nbd7 {[%emt 0:00:05]} 11. Ncxe4 {[%emt 0:00:05]} Nxe4 {[%emt 0:00:03]} 12. Nxe4 {[%emt 0:00:01]} h6 {[%emt 0:00:12]} 13. Bf4 {[%emt 0:00:02]} f5 {[%emt 0:00:04]} 14. Ng3 {[%emt 0:00:12]} g5 {[%emt 0:00:09]} 15. Bd2 {[%emt 0:00:03]} Bg7 {[%emt 0:00:04]} 16. O-O-O {[%emt 0:00:10]} Rc8+ {[%emt 0:01:20]} 17. Kb1 {[%emt 0:00:02]} f4 {[%emt 0:00:06]} 18. Ne4 {[%emt 0:00:16]} Bf5 {[%emt 0:00:45]} 19. Bd3 {[%emt 0:02:01]} Ne5 {[%emt 0:00:06]} 20. Bc2 {[%emt 0:00:02]} Rxc2 {[%emt 0:00:14]} 21. Ba5+ {[%emt 0:00:01]} Ke7 {[%emt 0:00:20]} 22. Bb4+ {[%emt 0:00:01]} Ke6 {[%emt 0:00:06]} 23. Kxc2 {[%emt 0:00:45]} Bxe4+ {[%emt 0:00:03]} 24. Kb3 {[%emt 0:00:00]} Bxg2 {[%emt 0:00:20]} 25. Rhe1 {[%emt 0:00:03]} Bd5+ {[%emt 0:00:11]} 26. Ka4 {[%emt 0:00:25]} Rd8 {[%emt 0:00:09]} 27. Bc3 {[%emt 0:00:12]} Bc6+ {[%emt 0:00:02]} 28. Kb3 {[%emt 0:00:03]} Rxd1 {[%emt 0:00:01]} 29. Rxd1 {[%emt 0:00:00]} Bf6 {[%emt 0:00:02]} 0-1